[Event "Titled Tuesday Blitz August 24 2021"]
[White "Harshavardhan G B"]
[Black "Weetik, Vjacheslav"]
[WhiteFideId "25059009"]
[BlackFideId "4153472"]
[WhiteElo "1825"]
[BlackElo "2469"]
[Result "0-1"]
[Round "11"]
[TimeControl "180+1"]
[Date "2021.08.24"]
[WhiteClock "0:00:31"]
[BlackClock "0:00:41"]

1. f4 {[%clk 0:03:00]}  d5 {[%clk 0:03:00]} 2. Nf3 {[%clk 0:03:00]}  Bg4 {[%clk 0:02:59]} 3. e3 {[%clk 0:02:59]}  Nd7 {[%clk 0:02:59]} 4. Be2 {[%clk 0:02:59]}  c6 {[%clk 0:02:56]} 5. b3 {[%clk 0:02:58]}  Bxf3 {[%clk 0:02:54]} 6. Bxf3 {[%clk 0:02:59]}  e5 {[%clk 0:02:55]} 7. Bb2 {[%clk 0:02:55]}  Bd6 {[%clk 0:02:53]} 8. g3 {[%clk 0:02:53]}  Ngf6 {[%clk 0:02:51]} 9. d3 {[%clk 0:02:52]}  Qe7 {[%clk 0:02:49]} 10. Qe2 {[%clk 0:02:51]}  O-O-O {[%clk 0:02:47]} 11. Nd2 {[%clk 0:02:50]}  Rhe8 {[%clk 0:02:45]} 12. f5 {[%clk 0:02:14]}  e4 {[%clk 0:02:27]} 13. dxe4 {[%clk 0:02:12]}  dxe4 {[%clk 0:02:27]} 14. Bg2 {[%clk 0:02:12]}  Be5 {[%clk 0:02:26]} 15. O-O-O {[%clk 0:02:07]}  Bxb2+ {[%clk 0:02:22]} 16. Kxb2 {[%clk 0:02:08]}  Qe5+ {[%clk 0:02:20]} 17. Kb1 {[%clk 0:02:08]}  Nd5 {[%clk 0:02:07]} 18. Nxe4 {[%clk 0:01:45]}  N7f6 {[%clk 0:02:08]} 19. Qc4 {[%clk 0:01:11]}  Nxe4 {[%clk 0:02:05]} 20. Rd4 {[%clk 0:01:10]}  Nec3+ {[%clk 0:01:35]} 21. Kb2 {[%clk 0:01:08]}  Nxe3 {[%clk 0:01:15]} 22. Rxd8+ {[%clk 0:01:04]}  Rxd8 {[%clk 0:01:14]} 23. Qxc3 {[%clk 0:01:05]}  Qxc3+ {[%clk 0:00:59]} 24. Kxc3 {[%clk 0:01:03]}  Nxg2 {[%clk 0:01:00]} 25. Rf1 {[%clk 0:00:56]}  Ne3 {[%clk 0:00:59]} 26. Rf3 {[%clk 0:00:56]}  Nd5+ {[%clk 0:00:58]} 27. Kb2 {[%clk 0:00:55]}  h6 {[%clk 0:00:58]} 28. c4 {[%clk 0:00:55]}  Nf6 {[%clk 0:00:58]} 29. Kc2 {[%clk 0:00:54]}  Rd4 {[%clk 0:00:57]} 30. Re3 {[%clk 0:00:52]}  Kd7 {[%clk 0:00:57]} 31. h3 {[%clk 0:00:51]}  c5 {[%clk 0:00:56]} 32. g4 {[%clk 0:00:49]}  b6 {[%clk 0:00:53]} 33. a4 {[%clk 0:00:48]}  a5 {[%clk 0:00:52]} 34. Rg3 {[%clk 0:00:42]}  Ne4 {[%clk 0:00:49]} 35. Rg2 {[%clk 0:00:40]}  Kd6 {[%clk 0:00:47]} 36. h4 {[%clk 0:00:38]}  Ke5 {[%clk 0:00:47]} 37. Kc1 {[%clk 0:00:32]}  Rd3 {[%clk 0:00:43]} 38. g5 {[%clk 0:00:30]}  hxg5 {[%clk 0:00:42]} 39. hxg5 {[%clk 0:00:31]}  Kxf5 {[%clk 0:00:41]} 0-1


[Site "https://www.chess.com"]

[Event "Titled Tuesday Blitz August 24 2021"]
[White "Ibadov, Dashgyn"]
[Black "Hasman, Cengiz"]
[WhiteFideId "24107514"]
[BlackFideId "413364"]
[WhiteElo "2102"]
[BlackElo "2020"]
[Result "1-0"]
[Round "11"]
[TimeControl "180+1"]
[Date "2021.08.24"]
[WhiteClock "0:00:13"]
[BlackClock "0:00:13"]

1. e4 {[%clk 0:02:58]}  d6 {[%clk 0:03:00]} 2. d4 {[%clk 0:02:58]}  Nf6 {[%clk 0:03:00]} 3. Nc3 {[%clk 0:02:58]}  Nbd7 {[%clk 0:03:01]} 4. Nf3 {[%clk 0:02:56]}  e5 {[%clk 0:03:01]} 5. Be2 {[%clk 0:02:55]}  Be7 {[%clk 0:03:02]} 6. O-O {[%clk 0:02:56]}  c6 {[%clk 0:03:02]} 7. Re1 {[%clk 0:02:56]}  b5 {[%clk 0:03:00]} 8. a3 {[%clk 0:02:55]}  Bb7 {[%clk 0:03:00]} 9. d5 {[%clk 0:02:42]}  cxd5 {[%clk 0:02:59]} 10. exd5 {[%clk 0:02:42]}  a6 {[%clk 0:02:58]} 11. Nh4 {[%clk 0:02:16]}  O-O {[%clk 0:02:54]} 12. Nf5 {[%clk 0:02:16]}  Nb6 {[%clk 0:02:48]} 13. Bg5 {[%clk 0:02:07]}  Rc8 {[%clk 0:02:18]} 14. Bf3 {[%clk 0:01:41]}  Qd7 {[%clk 0:02:13]} 15. Nxe7+ {[%clk 0:01:40]}  Qxe7 {[%clk 0:02:11]} 16. Ne4 {[%clk 0:01:39]}  Kh8 {[%clk 0:01:56]} 17. Bxf6 {[%clk 0:01:25]}  gxf6 {[%clk 0:01:55]} 18. Ng3 {[%clk 0:01:26]}  Rg8 {[%clk 0:01:42]} 19. Be4 {[%clk 0:01:20]}  Rc4 {[%clk 0:01:14]} 20. Qh5 {[%clk 0:00:44]}  Rxe4 {[%clk 0:01:05]} 21. Nxe4 {[%clk 0:00:36]}  Bxd5 {[%clk 0:00:56]} 22. Rad1 {[%clk 0:00:31]}  f5 {[%clk 0:00:54]} 23. Qxf5 {[%clk 0:00:29]}  Rg6 {[%clk 0:00:47]} 24. g3 {[%clk 0:00:24]}  Be6 {[%clk 0:00:44]} 25. Qh5 {[%clk 0:00:17]}  Nd5 {[%clk 0:00:37]} 26. Qe2 {[%clk 0:00:09]}  f5 {[%clk 0:00:35]} 27. Nc3 {[%clk 0:00:07]}  Nf4 {[%clk 0:00:32]} 28. Qd2 {[%clk 0:00:07]}  Nh3+ {[%clk 0:00:32]} 29. Kf1 {[%clk 0:00:06]}  Bc8 {[%clk 0:00:24]} 30. Nd5 {[%clk 0:00:04]}  Qf7 {[%clk 0:00:24]} 31. Ne3 {[%clk 0:00:04]}  f4 {[%clk 0:00:22]} 32. Qd5 {[%clk 0:00:05]}  Be6 {[%clk 0:00:20]} 33. Qxd6 {[%clk 0:00:05]}  fxe3 {[%clk 0:00:19]} 34. Qxe5+ {[%clk 0:00:05]}  Kg8 {[%clk 0:00:12]} 35. Rd8+ {[%clk 0:00:05]}  Qf8 {[%clk 0:00:12]} 36. Rxf8+ {[%clk 0:00:05]}  Kxf8 {[%clk 0:00:13]} 37. Rxe3 {[%clk 0:00:05]}  Bc4+ {[%clk 0:00:11]} 38. Ke1 {[%clk 0:00:05]}  Re6 {[%clk 0:00:11]} 39. Qxe6 {[%clk 0:00:05]}  Bxe6 {[%clk 0:00:12]} 40. Rxe6 {[%clk 0:00:06]}  Kf7 {[%clk 0:00:12]} 41. Rxa6 {[%clk 0:00:06]}  Ng5 {[%clk 0:00:13]} 42. Ra7+ {[%clk 0:00:06]}  Kf6 {[%clk 0:00:13]} 43. a4 {[%clk 0:00:07]}  Nf3+ {[%clk 0:00:14]} 44. Ke2 {[%clk 0:00:07]}  Nd4+ {[%clk 0:00:15]} 45. Kd3 {[%clk 0:00:07]}  Nf5 {[%clk 0:00:12]} 46. axb5 {[%clk 0:00:07]}  Ke5 {[%clk 0:00:12]} 47. b6 {[%clk 0:00:08]}  Nd6 {[%clk 0:00:12]} 48. b7 {[%clk 0:00:08]}  Nxb7 {[%clk 0:00:12]} 49. Ra5+ {[%clk 0:00:09]}  Kd6 {[%clk 0:00:12]} 50. Rh5 {[%clk 0:00:08]}  Ke6 {[%clk 0:00:10]} 51. Rh6+ {[%clk 0:00:08]}  Kf5 {[%clk 0:00:09]} 52. Rxh7 {[%clk 0:00:09]}  Nc5+ {[%clk 0:00:10]} 53. Kc4 {[%clk 0:00:09]}  Ne4 {[%clk 0:00:10]} 54. b4 {[%clk 0:00:10]}  Nd6+ {[%clk 0:00:10]} 55. Kd5 {[%clk 0:00:10]}  Nb5 {[%clk 0:00:10]} 56. Kc5 {[%clk 0:00:10]}  Nc3 {[%clk 0:00:09]} 57. b5 {[%clk 0:00:10]}  Ne4+ {[%clk 0:00:10]} 58. Kc6 {[%clk 0:00:10]}  Nxf2 {[%clk 0:00:11]} 59. b6 {[%clk 0:00:11]}  Ne4 {[%clk 0:00:10]} 60. b7 {[%clk 0:00:11]}  Kg6 {[%clk 0:00:11]} 61. Re7 {[%clk 0:00:11]}  Nc3 {[%clk 0:00:10]} 62. b8=Q {[%clk 0:00:10]}  Nd5 {[%clk 0:00:11]} 63. Qd6+ {[%clk 0:00:10]}  Kh5 {[%clk 0:00:10]} 64. Qxd5+ {[%clk 0:00:10]}  Kg4 {[%clk 0:00:11]} 65. Re4+ {[%clk 0:00:11]}  Kh3 {[%clk 0:00:12]} 66. g4 {[%clk 0:00:11]}  Kh4 {[%clk 0:00:12]} 67. g5+ {[%clk 0:00:11]}  Kh5 {[%clk 0:00:12]} 68. g6+ {[%clk 0:00:12]}  Kh6 {[%clk 0:00:12]} 69. g7 {[%clk 0:00:12]}  Kh7 {[%clk 0:00:12]} 70. g8=Q+ {[%clk 0:00:13]}  Kh6 {[%clk 0:00:13]} 71. Rh4# {[%clk 0:00:13]} 1-0


[Site "https://www.chess.com"]

[Event "Titled Tuesday Blitz August 24 2021"]
[White "Ibarra Jerez, Jose Carlos"]
[Black "Shimelkov, Vasiliy"]
[WhiteFideId "2226332"]
[BlackFideId "13701630"]
[WhiteElo "2602"]
[BlackElo "2073"]
[Result "0-1"]
[Round "11"]
[TimeControl "180+1"]
[Date "2021.08.24"]
[WhiteClock "0:00:02"]
[BlackClock "0:00:07"]

1. g4 {[%clk 0:03:00]}  d5 {[%clk 0:02:59]} 2. Bg2 {[%clk 0:02:57]}  Bxg4 {[%clk 0:02:55]} 3. c4 {[%clk 0:02:57]}  Nf6 {[%clk 0:02:51]} 4. cxd5 {[%clk 0:02:54]}  Nxd5 {[%clk 0:02:42]} 5. Qb3 {[%clk 0:02:52]}  c6 {[%clk 0:02:34]} 6. Qxb7 {[%clk 0:02:43]}  Nb6 {[%clk 0:02:33]} 7. Nc3 {[%clk 0:02:21]}  Bc8 {[%clk 0:02:25]} 8. Bxc6+ {[%clk 0:02:18]}  Nxc6 {[%clk 0:02:24]} 9. Qxc6+ {[%clk 0:02:18]}  Bd7 {[%clk 0:02:24]} 10. Qe4 {[%clk 0:02:11]}  Rc8 {[%clk 0:02:20]} 11. Nf3 {[%clk 0:01:49]}  e6 {[%clk 0:02:12]} 12. Ne5 {[%clk 0:01:46]}  Be7 {[%clk 0:02:08]} 13. Rg1 {[%clk 0:01:45]}  Bf6 {[%clk 0:02:04]} 14. d4 {[%clk 0:01:43]}  Qe7 {[%clk 0:01:39]} 15. Bd2 {[%clk 0:01:30]}  O-O {[%clk 0:01:30]} 16. Qg4 {[%clk 0:01:12]}  Bxe5 {[%clk 0:01:25]} 17. dxe5 {[%clk 0:01:11]}  g6 {[%clk 0:01:26]} 18. Bg5 {[%clk 0:00:59]}  Qc5 {[%clk 0:01:25]} 19. Bf6 {[%clk 0:00:54]}  Rfe8 {[%clk 0:01:24]} 20. Qf4 {[%clk 0:00:52]}  Nd5 {[%clk 0:01:21]} 21. Nxd5 {[%clk 0:00:48]}  exd5 {[%clk 0:01:21]} 22. Rg3 {[%clk 0:00:44]}  Be6 {[%clk 0:01:13]} 23. Rc3 {[%clk 0:00:43]}  Qf8 {[%clk 0:01:09]} 24. Rac1 {[%clk 0:00:41]}  h5 {[%clk 0:01:02]} 25. f3 {[%clk 0:00:38]}  Kh7 {[%clk 0:00:59]} 26. Rc7 {[%clk 0:00:37]}  Rxc7 {[%clk 0:00:55]} 27. Rxc7 {[%clk 0:00:36]}  a6 {[%clk 0:00:54]} 28. Qa4 {[%clk 0:00:31]}  Rc8 {[%clk 0:00:51]} 29. Qc6 {[%clk 0:00:24]}  Rxc7 {[%clk 0:00:49]} 30. Qxc7 {[%clk 0:00:24]}  Qc8 {[%clk 0:00:47]} 31. Qe7 {[%clk 0:00:20]}  Qc1+ {[%clk 0:00:43]} 32. Kf2 {[%clk 0:00:20]}  Qh1 {[%clk 0:00:37]} 33. Qf8 {[%clk 0:00:17]}  Qxh2+ {[%clk 0:00:35]} 34. Ke3 {[%clk 0:00:09]}  Qg1+ {[%clk 0:00:35]} 35. Kd3 {[%clk 0:00:06]}  Qd1+ {[%clk 0:00:34]} 36. Kc3 {[%clk 0:00:04]}  Qe1+ {[%clk 0:00:26]} 37. Kd4 {[%clk 0:00:02]}  Qd2+ {[%clk 0:00:25]} 38. Kc5 {[%clk 0:00:02]}  Qa5+ {[%clk 0:00:24]} 39. Kc6 {[%clk 0:00:02]}  Qb5+ {[%clk 0:00:23]} 40. Kc7 {[%clk 0:00:03]}  Qc4+ {[%clk 0:00:22]} 41. Kb8 {[%clk 0:00:03]}  Qb5+ {[%clk 0:00:21]} 42. Ka7 {[%clk 0:00:03]}  Qd7+ {[%clk 0:00:20]} 43. Kxa6 {[%clk 0:00:03]}  Qc6+ {[%clk 0:00:19]} 44. Ka5 {[%clk 0:00:04]}  Qc7+ {[%clk 0:00:16]} 45. Kb4 {[%clk 0:00:04]}  Qc4+ {[%clk 0:00:15]} 46. Ka3 {[%clk 0:00:05]}  Qa6+ {[%clk 0:00:13]} 47. Kb4 {[%clk 0:00:05]}  Qc4+ {[%clk 0:00:11]} 48. Ka5 {[%clk 0:00:06]}  Qc7+ {[%clk 0:00:11]} 49. Kb5 {[%clk 0:00:04]}  Bd7+ {[%clk 0:00:07]} 50. Kb4 {[%clk 0:00:04]}  Qc4+ {[%clk 0:00:07]} 51. Ka5 {[%clk 0:00:02]}  Qc7+ {[%clk 0:00:07]} 0-1


[Site "https://www.chess.com"]

[Event "Titled Tuesday Blitz August 24 2021"]
[White "Indjic, Aleksandar"]
[Black "Sadhwani, Raunak"]
[WhiteFideId "911925"]
[BlackFideId "35093487"]
[WhiteElo "2643"]
[BlackElo "2514"]
[Result "0-1"]
[Round "11"]
[TimeControl "180+1"]
[Date "2021.08.24"]
[WhiteClock "0:00:04"]
[BlackClock "0:00:19"]

1. d4 {[%clk 0:03:00]}  Nf6 {[%clk 0:02:55]} 2. c4 {[%clk 0:03:01]}  g6 {[%clk 0:02:55]} 3. Nc3 {[%clk 0:03:01]}  Bg7 {[%clk 0:02:56]} 4. Nf3 {[%clk 0:02:58]}  O-O {[%clk 0:02:56]} 5. Bg5 {[%clk 0:02:59]}  d6 {[%clk 0:02:54]} 6. e3 {[%clk 0:02:59]}  c6 {[%clk 0:02:52]} 7. h3 {[%clk 0:02:58]}  Re8 {[%clk 0:02:52]} 8. Qc2 {[%clk 0:02:58]}  Nbd7 {[%clk 0:02:53]} 9. Be2 {[%clk 0:02:57]}  Nf8 {[%clk 0:02:53]} 10. Bh4 {[%clk 0:02:57]}  h6 {[%clk 0:02:53]} 11. O-O {[%clk 0:02:56]}  Bf5 {[%clk 0:02:51]} 12. e4 {[%clk 0:02:51]}  Bd7 {[%clk 0:02:51]} 13. e5 {[%clk 0:02:51]}  Nh5 {[%clk 0:02:35]} 14. Rad1 {[%clk 0:01:32]}  Nf4 {[%clk 0:02:18]} 15. Bg3 {[%clk 0:01:29]}  Nxe2+ {[%clk 0:02:17]} 16. Qxe2 {[%clk 0:01:30]}  g5 {[%clk 0:02:10]} 17. h4 {[%clk 0:01:26]}  g4 {[%clk 0:02:09]} 18. Nd2 {[%clk 0:01:25]}  Bf5 {[%clk 0:02:06]} 19. Nde4 {[%clk 0:01:24]}  d5 {[%clk 0:02:02]} 20. cxd5 {[%clk 0:01:22]}  cxd5 {[%clk 0:02:03]} 21. Nc5 {[%clk 0:01:22]}  b6 {[%clk 0:02:01]} 22. Nd3 {[%clk 0:01:22]}  e6 {[%clk 0:01:57]} 23. Nf4 {[%clk 0:01:20]}  Rc8 {[%clk 0:01:57]} 24. Nh5 {[%clk 0:01:20]}  Ng6 {[%clk 0:01:43]} 25. Nxg7 {[%clk 0:01:19]}  Kxg7 {[%clk 0:01:44]} 26. h5 {[%clk 0:01:19]}  Nf8 {[%clk 0:01:41]} 27. f3 {[%clk 0:00:35]}  Qg5 {[%clk 0:01:38]} 28. Kf2 {[%clk 0:00:29]}  Qxh5 {[%clk 0:01:21]} 29. Rh1 {[%clk 0:00:28]}  Qg6 {[%clk 0:01:12]} 30. Rh4 {[%clk 0:00:24]}  Nd7 {[%clk 0:00:58]} 31. Rdh1 {[%clk 0:00:21]}  Rh8 {[%clk 0:00:45]} 32. fxg4 {[%clk 0:00:21]}  Bd3 {[%clk 0:00:46]} 33. Qd2 {[%clk 0:00:20]}  b5 {[%clk 0:00:44]} 34. a3 {[%clk 0:00:13]}  Nb6 {[%clk 0:00:41]} 35. Bf4 {[%clk 0:00:12]}  Nc4 {[%clk 0:00:41]} 36. Qc1 {[%clk 0:00:11]}  Kg8 {[%clk 0:00:27]} 37. Bxh6 {[%clk 0:00:10]}  f6 {[%clk 0:00:20]} 38. exf6 {[%clk 0:00:06]}  Qxf6+ {[%clk 0:00:21]} 39. Qf4 {[%clk 0:00:05]}  Rxh6 {[%clk 0:00:19]} 40. Qxf6 {[%clk 0:00:02]}  Rxf6+ {[%clk 0:00:20]} 41. Kg3 {[%clk 0:00:03]}  Kg7 {[%clk 0:00:21]} 42. Rh5 {[%clk 0:00:03]}  Bg6 {[%clk 0:00:20]} 43. R5h4 {[%clk 0:00:03]}  Nd6 {[%clk 0:00:20]} 44. Ne2 {[%clk 0:00:03]}  Ne4+ {[%clk 0:00:20]} 45. Kh2 {[%clk 0:00:04]}  Rc2 {[%clk 0:00:20]} 46. Ng3 {[%clk 0:00:04]}  Rff2 {[%clk 0:00:20]} 47. Rg1 {[%clk 0:00:04]}  Nxg3 {[%clk 0:00:19]} 48. Kxg3 {[%clk 0:00:04]}  Rxb2 {[%clk 0:00:18]} 49. g5 {[%clk 0:00:05]}  Be4 {[%clk 0:00:16]} 50. Rh5 {[%clk 0:00:03]}  Kg6 {[%clk 0:00:16]} 51. Rh6+ {[%clk 0:00:02]}  Kxg5 {[%clk 0:00:17]} 52. Rh8 {[%clk 0:00:02]}  Rxg2+ {[%clk 0:00:17]} 53. Rxg2 {[%clk 0:00:03]}  Rxg2+ {[%clk 0:00:17]} 54. Kh3 {[%clk 0:00:04]}  Ra2 {[%clk 0:00:17]} 55. Rg8+ {[%clk 0:00:04]}  Kf4 {[%clk 0:00:18]} 56. Rb8 {[%clk 0:00:04]}  Bf5+ {[%clk 0:00:18]} 57. Kh4 {[%clk 0:00:04]}  Rh2# {[%clk 0:00:19]} 0-1


[Site "https://www.chess.com"]

[Event "Titled Tuesday Blitz August 24 2021"]
[White "Isajevsky, Anton"]
[Black "Hamley, Ryan"]
[WhiteFideId "4142500"]
[BlackFideId "30959497"]
[WhiteElo "2510"]
[BlackElo "2391"]
[Result "1-0"]
[Round "11"]
[TimeControl "180+1"]
[Date "2021.08.24"]
[WhiteClock "0:02:24"]
[BlackClock "0:02:52"]

1. c4 {[%clk 0:03:00]}  g6 {[%clk 0:03:00]} 2. h4 {[%clk 0:02:59]}  Bg7 {[%clk 0:03:01]} 3. h5 {[%clk 0:02:59]}  c5 {[%clk 0:02:55]} 4. Nc3 {[%clk 0:02:58]}  Nc6 {[%clk 0:02:55]} 5. d3 {[%clk 0:02:57]}  d6 {[%clk 0:02:55]} 6. Nf3 {[%clk 0:02:54]}  Bg4 {[%clk 0:02:55]} 7. h6 {[%clk 0:02:54]}  Bxc3+ {[%clk 0:02:54]} 8. bxc3 {[%clk 0:02:53]}  Bxf3 {[%clk 0:02:54]} 9. gxf3 {[%clk 0:02:52]}  f5 {[%clk 0:02:55]} 10. Bg5 {[%clk 0:02:47]}  Nf6 {[%clk 0:02:56]} 11. f4 {[%clk 0:02:40]}  Qa5 {[%clk 0:02:56]} 12. Qd2 {[%clk 0:02:40]}  O-O {[%clk 0:02:55]} 13. Bg2 {[%clk 0:02:39]}  e5 {[%clk 0:02:54]} 14. Rb1 {[%clk 0:02:34]}  Rab8 {[%clk 0:02:52]} 15. Bxf6 {[%clk 0:02:24]} 1-0


[Site "https://www.chess.com"]

[Event "Titled Tuesday Blitz August 24 2021"]
[White "Jobava, Baadur"]
[Black "Rakhmanov, Aleksandr"]
[WhiteFideId "13601520"]
[BlackFideId "4173708"]
[WhiteElo "2748"]
[BlackElo "2498"]
[Result "1-0"]
[Round "11"]
[TimeControl "180+1"]
[Date "2021.08.24"]
[WhiteClock "0:00:31"]
[BlackClock "0:00:05"]

1. e4 {[%clk 0:03:00]}  c5 {[%clk 0:02:59]} 2. c4 {[%clk 0:03:00]}  Nc6 {[%clk 0:02:57]} 3. Ne2 {[%clk 0:02:59]}  e5 {[%clk 0:02:57]} 4. Nbc3 {[%clk 0:02:59]}  d6 {[%clk 0:02:58]} 5. g3 {[%clk 0:02:59]}  h5 {[%clk 0:02:58]} 6. h3 {[%clk 0:02:56]}  h4 {[%clk 0:02:58]} 7. g4 {[%clk 0:02:56]}  Nge7 {[%clk 0:02:54]} 8. d3 {[%clk 0:02:55]}  Ng6 {[%clk 0:02:54]} 9. Bg2 {[%clk 0:02:55]}  Be7 {[%clk 0:02:54]} 10. Nd5 {[%clk 0:02:54]}  O-O {[%clk 0:02:50]} 11. Nxe7+ {[%clk 0:02:54]}  Qxe7 {[%clk 0:02:50]} 12. O-O {[%clk 0:02:53]}  Nd4 {[%clk 0:02:49]} 13. Nc3 {[%clk 0:02:54]}  Be6 {[%clk 0:02:49]} 14. f4 {[%clk 0:02:46]}  Nxf4 {[%clk 0:02:45]} 15. Bxf4 {[%clk 0:02:47]}  exf4 {[%clk 0:02:45]} 16. Rxf4 {[%clk 0:02:48]}  Qg5 {[%clk 0:02:42]} 17. Qd2 {[%clk 0:02:43]}  Rab8 {[%clk 0:02:42]} 18. Raf1 {[%clk 0:02:28]}  b5 {[%clk 0:02:37]} 19. b3 {[%clk 0:02:28]}  bxc4 {[%clk 0:02:15]} 20. dxc4 {[%clk 0:02:29]}  a5 {[%clk 0:02:11]} 21. Qf2 {[%clk 0:02:20]}  Qe5 {[%clk 0:02:01]} 22. Kh1 {[%clk 0:01:45]}  Nxb3 {[%clk 0:01:58]} 23. Nd5 {[%clk 0:01:45]}  Bxd5 {[%clk 0:01:50]} 24. exd5 {[%clk 0:01:46]}  Nd4 {[%clk 0:01:43]} 25. Rxf7 {[%clk 0:01:46]}  Rxf7 {[%clk 0:01:23]} 26. Qxf7+ {[%clk 0:01:47]}  Kh7 {[%clk 0:01:11]} 27. Qf2 {[%clk 0:01:43]}  Ne2 {[%clk 0:00:51]} 28. Qxh4+ {[%clk 0:01:36]}  Kg8 {[%clk 0:00:50]} 29. Rd1 {[%clk 0:01:21]}  Rf8 {[%clk 0:00:39]} 30. Qe1 {[%clk 0:01:14]}  Ng3+ {[%clk 0:00:27]} 31. Kg1 {[%clk 0:01:12]}  Qf4 {[%clk 0:00:24]} 32. Rd3 {[%clk 0:00:56]}  Qc1 {[%clk 0:00:23]} 33. Qxc1 {[%clk 0:00:53]}  Ne2+ {[%clk 0:00:23]} 34. Kh2 {[%clk 0:00:54]}  Nxc1 {[%clk 0:00:24]} 35. Ra3 {[%clk 0:00:54]}  Rf2 {[%clk 0:00:22]} 36. Rxa5 {[%clk 0:00:50]}  Ne2 {[%clk 0:00:16]} 37. h4 {[%clk 0:00:40]}  Kf7 {[%clk 0:00:13]} 38. Ra7+ {[%clk 0:00:39]}  Kf6 {[%clk 0:00:09]} 39. g5+ {[%clk 0:00:40]}  Kg6 {[%clk 0:00:10]} 40. Rd7 {[%clk 0:00:38]}  Kh5 {[%clk 0:00:07]} 41. Kh3 {[%clk 0:00:33]}  Nf4+ {[%clk 0:00:03]} 42. Kg3 {[%clk 0:00:33]}  Rxg2+ {[%clk 0:00:04]} 43. Kxf4 {[%clk 0:00:33]}  Rg4+ {[%clk 0:00:04]} 44. Kf5 {[%clk 0:00:32]}  g6+ {[%clk 0:00:02]} 45. Ke6 {[%clk 0:00:32]}  Rxc4 {[%clk 0:00:03]} 46. Rh7+ {[%clk 0:00:32]}  Kg4 {[%clk 0:00:03]} 47. Kxd6 {[%clk 0:00:33]}  Ra4 {[%clk 0:00:03]} 48. Kxc5 {[%clk 0:00:33]}  Rxa2 {[%clk 0:00:03]} 49. d6 {[%clk 0:00:33]}  Kf5 {[%clk 0:00:04]} 50. d7 {[%clk 0:00:33]}  Rd2 {[%clk 0:00:05]} 51. Kc6 {[%clk 0:00:33]}  Ke6 {[%clk 0:00:05]} 52. Kc7 {[%clk 0:00:31]} 1-0


[Site "https://www.chess.com"]

[Event "Titled Tuesday Blitz August 24 2021"]
[White "Kim, Sergey"]
[Black "Firat, Burak"]
[WhiteFideId "13700570"]
[BlackFideId "6305881"]
[WhiteElo "2474"]
[BlackElo "2531"]
[Result "1-0"]
[Round "11"]
[TimeControl "180+1"]
[Date "2021.08.24"]
[WhiteClock "0:01:23"]
[BlackClock "0:01:30"]

1. d4 {[%clk 0:03:00]}  Nf6 {[%clk 0:02:59]} 2. c4 {[%clk 0:03:00]}  g6 {[%clk 0:02:58]} 3. Nc3 {[%clk 0:03:00]}  d5 {[%clk 0:02:58]} 4. cxd5 {[%clk 0:02:59]}  Nxd5 {[%clk 0:02:59]} 5. e4 {[%clk 0:03:00]}  Nxc3 {[%clk 0:02:59]} 6. bxc3 {[%clk 0:03:00]}  Bg7 {[%clk 0:03:00]} 7. Bc4 {[%clk 0:03:00]}  O-O {[%clk 0:02:58]} 8. Ne2 {[%clk 0:03:00]}  Nc6 {[%clk 0:02:56]} 9. O-O {[%clk 0:02:59]}  b6 {[%clk 0:02:54]} 10. Bg5 {[%clk 0:02:55]}  Bb7 {[%clk 0:02:53]} 11. Qd2 {[%clk 0:02:54]}  Qd6 {[%clk 0:02:52]} 12. Bh6 {[%clk 0:02:40]}  Rad8 {[%clk 0:02:43]} 13. Bxg7 {[%clk 0:02:38]}  Kxg7 {[%clk 0:02:44]} 14. Qg5 {[%clk 0:02:31]}  Na5 {[%clk 0:02:32]} 15. Bd3 {[%clk 0:02:30]}  Qf6 {[%clk 0:02:25]} 16. Qg3 {[%clk 0:02:26]}  c5 {[%clk 0:02:19]} 17. e5 {[%clk 0:02:02]}  Qc6 {[%clk 0:02:17]} 18. f4 {[%clk 0:01:58]}  cxd4 {[%clk 0:02:13]} 19. cxd4 {[%clk 0:01:57]}  f5 {[%clk 0:01:58]} 20. exf6+ {[%clk 0:01:44]}  Rxf6 {[%clk 0:01:43]} 21. f5 {[%clk 0:01:44]}  Qd6 {[%clk 0:01:42]} 22. Rf4 {[%clk 0:01:37]}  e5 {[%clk 0:01:29]} 23. fxe6 {[%clk 0:01:24]}  Qe5 {[%clk 0:01:30]} 24. dxe5 {[%clk 0:01:23]} 1-0


[Site "https://www.chess.com"]

[Event "Titled Tuesday Blitz August 24 2021"]
[White "Korchmar, Vasiliy"]
[Black "Navalgund, Niranjan"]
[WhiteFideId "24131750"]
[BlackFideId "5030854"]
[WhiteElo "2370"]
[BlackElo "2290"]
[Result "1-0"]
[Round "11"]
[TimeControl "180+1"]
[Date "2021.08.24"]
[WhiteClock "0:00:49"]
[BlackClock "0:01:49"]

1. e4 {[%clk 0:03:00]}  e5 {[%clk 0:02:59]} 2. Nf3 {[%clk 0:03:01]}  Nc6 {[%clk 0:02:59]} 3. Nc3 {[%clk 0:03:01]}  Nf6 {[%clk 0:02:59]} 4. Bb5 {[%clk 0:03:01]}  Bb4 {[%clk 0:02:58]} 5. O-O {[%clk 0:03:01]}  O-O {[%clk 0:02:58]} 6. d3 {[%clk 0:03:02]}  d6 {[%clk 0:02:58]} 7. Bg5 {[%clk 0:03:02]}  Bxc3 {[%clk 0:02:58]} 8. bxc3 {[%clk 0:03:02]}  Qe7 {[%clk 0:02:59]} 9. Re1 {[%clk 0:03:01]}  Nd8 {[%clk 0:02:58]} 10. d4 {[%clk 0:03:01]}  Ne6 {[%clk 0:02:58]} 11. Bc1 {[%clk 0:03:00]}  c6 {[%clk 0:02:57]} 12. Bf1 {[%clk 0:03:00]}  Rd8 {[%clk 0:02:58]} 13. g3 {[%clk 0:02:57]}  h6 {[%clk 0:02:57]} 14. Nh4 {[%clk 0:02:54]}  c5 {[%clk 0:02:57]} 15. Nf5 {[%clk 0:02:42]}  Qf8 {[%clk 0:02:56]} 16. Qf3 {[%clk 0:02:17]}  Ng5 {[%clk 0:02:49]} 17. Nxh6+ {[%clk 0:02:13]}  gxh6 {[%clk 0:02:48]} 18. Bxg5 {[%clk 0:02:13]}  hxg5 {[%clk 0:02:35]} 19. Qxf6 {[%clk 0:02:12]}  Be6 {[%clk 0:02:35]} 20. Qxg5+ {[%clk 0:02:09]}  Qg7 {[%clk 0:02:35]} 21. Qxg7+ {[%clk 0:02:09]}  Kxg7 {[%clk 0:02:36]} 22. d5 {[%clk 0:02:00]}  Bd7 {[%clk 0:02:36]} 23. f4 {[%clk 0:01:47]}  exf4 {[%clk 0:02:09]} 24. gxf4 {[%clk 0:01:46]}  Rh8 {[%clk 0:02:10]} 25. e5 {[%clk 0:01:44]}  dxe5 {[%clk 0:02:10]} 26. fxe5 {[%clk 0:01:43]}  Rag8 {[%clk 0:02:10]} 27. Re3 {[%clk 0:01:34]}  Kf8+ {[%clk 0:02:09]} 28. Rg3 {[%clk 0:01:34]}  Rh5 {[%clk 0:02:08]} 29. Re1 {[%clk 0:01:29]}  Rgh8 {[%clk 0:02:06]} 30. e6 {[%clk 0:01:14]}  fxe6 {[%clk 0:02:05]} 31. dxe6 {[%clk 0:01:15]}  Bc6 {[%clk 0:02:06]} 32. e7+ {[%clk 0:01:15]}  Ke8 {[%clk 0:02:06]} 33. Bd3 {[%clk 0:01:14]}  Kd7 {[%clk 0:01:54]} 34. e8=Q+ {[%clk 0:01:09]}  Rxe8 {[%clk 0:01:53]} 35. Rxe8 {[%clk 0:01:10]}  c4 {[%clk 0:01:49]} 36. Bg6 {[%clk 0:01:05]}  Rd5 {[%clk 0:01:49]} 37. Re2 {[%clk 0:00:56]}  Rd1+ {[%clk 0:01:49]} 38. Kf2 {[%clk 0:00:55]}  Ra1 {[%clk 0:01:49]} 39. Be4 {[%clk 0:00:49]} 1-0


[Site "https://www.chess.com"]